[Event "Early-Titled-Tuesday-Blitz-February-13-2024"]
[Site "Chess.com"]
[Date "2024.02.13"]
[Round "1"]
[White "ValiantCeleb"]
[Black "Lion-Al-Messi"]
[Result "0-1"]
[WhiteElo "2169"]
[BlackElo "2589"]
[TimeControl "180+1"]
[EndTime "8:12:11 PST"]
[Termination "Lion-Al-Messi won on time"]

1. e4 {[%clk 0:03:00.9]} 1... e6 {[%clk 0:03:00]} 2. d4 {[%clk 0:03:00.4]} 2...
d5 {[%clk 0:03:00.3]} 3. Nc3 {[%clk 0:03:00.8]} 3... Nf6 {[%clk 0:03:00.4]} 4.
e5 {[%clk 0:03:00.4]} 4... Nfd7 {[%clk 0:03:00.6]} 5. f4 {[%clk 0:03:01.1]} 5...
c5 {[%clk 0:03:00.9]} 6. Nf3 {[%clk 0:03:00.2]} 6... Nc6 {[%clk 0:03:01.3]} 7.
Be3 {[%clk 0:02:59.8]} 7... a6 {[%clk 0:03:01.3]} 8. Qd2 {[%clk 0:02:44.1]} 8...
b5 {[%clk 0:03:00.9]} 9. dxc5 {[%clk 0:02:42.1]} 9... Bxc5 {[%clk 0:02:57.6]}
10. Bd3 {[%clk 0:02:40.1]} 10... Qb6 {[%clk 0:02:57.6]} 11. Bf2 {[%clk
0:02:39.3]} 11... O-O {[%clk 0:02:57.2]} 12. O-O {[%clk 0:02:38.8]} 12... Bxf2+
{[%clk 0:02:57.2]} 13. Qxf2 {[%clk 0:02:38.8]} 13... Qxf2+ {[%clk 0:02:57.2]}
14. Kxf2 {[%clk 0:02:39.4]} 14... b4 {[%clk 0:02:49.6]} 15. Ne2 {[%clk
0:02:38.7]} 15... a5 {[%clk 0:02:48.6]} 16. Ned4 {[%clk 0:02:30.7]} 16... Nxd4
{[%clk 0:02:48.3]} 17. Nxd4 {[%clk 0:02:31.6]} 17... Ba6 {[%clk 0:02:48.6]} 18.
Ke3 {[%clk 0:02:28.5]} 18... Rfc8 {[%clk 0:02:46.9]} 19. Rac1 {[%clk 0:02:20.7]}
19... h6 {[%clk 0:02:37.9]} 20. g4 {[%clk 0:02:15.4]} 20... a4 {[%clk
0:02:32.6]} 21. h4 {[%clk 0:01:53.1]} 21... a3 {[%clk 0:02:29.5]} 22. b3 {[%clk
0:01:45]} 22... Rc3 {[%clk 0:02:28.8]} 23. Ne2 {[%clk 0:01:41.8]} 23... Rc7
{[%clk 0:02:27.6]} 24. Bxa6 {[%clk 0:01:34.3]} 24... Rxa6 {[%clk 0:02:27.4]} 25.
c3 {[%clk 0:01:34.2]} 25... bxc3 {[%clk 0:02:19.3]} 26. Rxc3 {[%clk 0:01:33.7]}
26... Rac6 {[%clk 0:02:19.1]} 27. Rfc1 {[%clk 0:01:31.5]} 27... Rxc3+ {[%clk
0:02:10.3]} 28. Rxc3 {[%clk 0:01:31.5]} 28... Ra7 {[%clk 0:02:03.1]} 29. Nd4
{[%clk 0:01:23.4]} 29... g5 {[%clk 0:02:01.3]} 30. hxg5 {[%clk 0:01:19.8]} 30...
hxg5 {[%clk 0:02:02.2]} 31. Nb5 {[%clk 0:00:51.6]} 31... gxf4+ {[%clk
0:02:01.8]} 32. Kxf4 {[%clk 0:00:51.3]} 32... Ra8 {[%clk 0:02:00.8]} 33. Rc7
{[%clk 0:00:47.9]} 33... Nf8 {[%clk 0:01:59.1]} 34. Kg5 {[%clk 0:00:38.5]} 34...
Kg7 {[%clk 0:01:49.4]} 35. Nd6 {[%clk 0:00:35.7]} 35... Nh7+ {[%clk 0:01:49.5]}
36. Kf4 {[%clk 0:00:35.5]} 36... Rf8 {[%clk 0:01:50.4]} 37. Ra7 {[%clk 0:00:27]}
37... Kg6 {[%clk 0:01:50.8]} 38. Rxa3 {[%clk 0:00:25.1]} 38... Ng5 {[%clk
0:01:51]} 39. Ra7 {[%clk 0:00:22.1]} 39... Rh8 {[%clk 0:01:51]} 40. Ke3 {[%clk
0:00:15.7]} 40... Rh3+ {[%clk 0:01:51.3]} 41. Ke2 {[%clk 0:00:15.3]} 41... Rg3
{[%clk 0:01:50.7]} 42. b4 {[%clk 0:00:15.2]} 42... Rxg4 {[%clk 0:01:46.7]} 43.
b5 {[%clk 0:00:15.8]} 43... Rg2+ {[%clk 0:01:45.5]} 44. Ke3 {[%clk 0:00:15.8]}
44... Rb2 {[%clk 0:01:46.4]} 45. a4 {[%clk 0:00:14.5]} 45... Rb4 {[%clk
0:01:44.5]} 46. a5 {[%clk 0:00:12.7]} 46... d4+ {[%clk 0:01:44.9]} 47. Kd3
{[%clk 0:00:13]} 47... Nf3 {[%clk 0:01:45.2]} 48. Nxf7 {[%clk 0:00:12.5]} 48...
Rxb5 {[%clk 0:01:45.1]} 49. Nh8+ {[%clk 0:00:12.1]} 49... Kh5 {[%clk 0:01:42.7]}
50. a6 {[%clk 0:00:10.7]} 50... Rb4 {[%clk 0:01:40.5]} 51. Nf7 {[%clk
0:00:09.2]} 51... Rb3+ {[%clk 0:01:40.3]} 52. Ke2 {[%clk 0:00:08]} 52... Re3+
{[%clk 0:01:39.5]} 53. Kd1 {[%clk 0:00:08.4]} 53... Nxe5 {[%clk 0:01:40.4]} 54.
Nxe5 {[%clk 0:00:08.2]} 54... Rxe5 {[%clk 0:01:40.3]} 55. Rd7 {[%clk 0:00:09]}
55... Ra5 {[%clk 0:01:39]} 56. Rxd4 {[%clk 0:00:09.2]} 56... Rxa6 {[%clk
0:01:38.4]} 57. Ke2 {[%clk 0:00:09.8]} 57... Kg5 {[%clk 0:01:38.4]} 58. Rb4
{[%clk 0:00:09.8]} 58... Ra3 {[%clk 0:01:34.9]} 59. Rc4 {[%clk 0:00:09.3]} 59...
Kf5 {[%clk 0:01:34.9]} 60. Rb4 {[%clk 0:00:09.5]} 60... Rh3 {[%clk 0:01:32.9]}
61. Rc4 {[%clk 0:00:09.3]} 61... Ke5 {[%clk 0:01:32.4]} 62. Rb4 {[%clk
0:00:09.2]} 62... Rh2+ {[%clk 0:01:31.3]} 63. Ke3 {[%clk 0:00:08.9]} 63... Rh3+
{[%clk 0:01:31.7]} 64. Ke2 {[%clk 0:00:09.1]} 64... Rc3 {[%clk 0:01:31.9]} 65.
Kd2 {[%clk 0:00:08.7]} 65... Ra3 {[%clk 0:01:30.3]} 66. Ke2 {[%clk 0:00:08.6]}
66... Ra2+ {[%clk 0:01:22.4]} 67. Ke3 {[%clk 0:00:08.7]} 67... Ra5 {[%clk
0:01:23.3]} 68. Rh4 {[%clk 0:00:07.6]} 68... Ra3+ {[%clk 0:01:18.6]} 69. Ke2
{[%clk 0:00:08]} 69... Ra2+ {[%clk 0:01:18.9]} 70. Ke3 {[%clk 0:00:08.5]} 70...
Ra3+ {[%clk 0:01:19.4]} 71. Ke2 {[%clk 0:00:09]} 71... Kd5 {[%clk 0:01:19.6]}
72. Rg4 {[%clk 0:00:08.1]} 72... Ra2+ {[%clk 0:01:16.2]} 73. Ke3 {[%clk
0:00:08.1]} 73... Ra1 {[%clk 0:01:16.5]} 74. Rg5+ {[%clk 0:00:06.7]} 74... e5
{[%clk 0:01:17]} 75. Rg4 {[%clk 0:00:05.5]} 75... Ra3+ {[%clk 0:01:17.1]} 76.
Ke2 {[%clk 0:00:05.9]} 76... Ra2+ {[%clk 0:01:15.4]} 77. Kf3 {[%clk 0:00:05.8]}
77... Rd2 {[%clk 0:01:13.6]} 78. Ke3 {[%clk 0:00:05.5]} 78... Rd1 {[%clk
0:01:14.2]} 79. Ke2 {[%clk 0:00:05.5]} 79... Rb1 {[%clk 0:01:08]} 80. Rh4 {[%clk
0:00:05.3]} 80... Rb2+ {[%clk 0:01:07]} 81. Ke3 {[%clk 0:00:05.4]} 81... Rb3+
{[%clk 0:01:07.9]} 82. Ke2 {[%clk 0:00:05.9]} 82... Rg3 {[%clk 0:01:05.5]} 83.
Kf2 {[%clk 0:00:06]} 83... Rg5 {[%clk 0:00:59.7]} 84. Ke3 {[%clk 0:00:05.7]}
84... Rg8 {[%clk 0:00:55.4]} 85. Ke2 {[%clk 0:00:05.7]} 85... Ra8 {[%clk
0:00:55.4]} 86. Ke3 {[%clk 0:00:06.2]} 86... Rc8 {[%clk 0:00:53.6]} 87. Kd3
{[%clk 0:00:06]} 87... Rc1 {[%clk 0:00:48.7]} 88. Ra4 {[%clk 0:00:04.8]} 88...
Rd1+ {[%clk 0:00:47.6]} 89. Ke3 {[%clk 0:00:05.3]} 89... Re1+ {[%clk 0:00:47.4]}
90. Kd2 {[%clk 0:00:05.7]} 90... Rh1 {[%clk 0:00:45.4]} 91. Ke3 {[%clk
0:00:05.8]} 91... Rh3+ {[%clk 0:00:45.1]} 92. Ke2 {[%clk 0:00:06.2]} 92... Rc3
{[%clk 0:00:42.6]} 93. Kd2 {[%clk 0:00:06.2]} 93... Rc5 {[%clk 0:00:41.9]} 94.
Ke3 {[%clk 0:00:05.9]} 94... Rc8 {[%clk 0:00:41.2]} 95. Ra5+ {[%clk 0:00:05.8]}
95... Ke6 {[%clk 0:00:41.7]} 96. Ra6+ {[%clk 0:00:05.6]} 96... Kf5 {[%clk
0:00:42]} 97. Ra4 {[%clk 0:00:05.8]} 97... Rc3+ {[%clk 0:00:42.2]} 98. Ke2
{[%clk 0:00:06]} 98... Rg3 {[%clk 0:00:39.5]} 99. Rb4 {[%clk 0:00:05.4]} 99...
Rg2+ {[%clk 0:00:36.4]} 100. Ke3 {[%clk 0:00:05.6]} 100... Rg1 {[%clk
0:00:33.8]} 101. Ke2 {[%clk 0:00:05.7]} 101... Rc1 {[%clk 0:00:32.7]} 102. Ke3
{[%clk 0:00:06]} 102... Rc3+ {[%clk 0:00:32.6]} 103. Ke2 {[%clk 0:00:06.4]}
103... Rc8 {[%clk 0:00:29.3]} 104. Ra4 {[%clk 0:00:06.3]} 104... Rd8 {[%clk
0:00:25.4]} 105. Rb4 {[%clk 0:00:06.3]} 105... Rf8 {[%clk 0:00:23.3]} 106. Ra4
{[%clk 0:00:05.9]} 106... Kg5 {[%clk 0:00:23.4]} 107. Rb4 {[%clk 0:00:04.7]}
107... Rf4 {[%clk 0:00:21.8]} 108. Rb8 {[%clk 0:00:04.7]} 108... Kf5 {[%clk
0:00:18.5]} 109. Rf8+ {[%clk 0:00:03.5]} 109... Ke4 {[%clk 0:00:19]} 110. Ra8
{[%clk 0:00:04.1]} 110... Kd5 {[%clk 0:00:15.9]} 111. Ra5+ {[%clk 0:00:03.9]}
111... Ke6 {[%clk 0:00:15.5]} 112. Ra6+ {[%clk 0:00:03.3]} 112... Kf5 {[%clk
0:00:16]} 113. Ra5 {[%clk 0:00:04]} 113... Rg4 {[%clk 0:00:16.5]} 114. Rb5
{[%clk 0:00:04.1]} 114... Rg2+ {[%clk 0:00:16.9]} 115. Kf3 {[%clk 0:00:03.4]}
115... Ra2 {[%clk 0:00:17.8]} 116. Ke3 {[%clk 0:00:03.7]} 116... Ra3+ {[%clk
0:00:18.1]} 117. Ke2 {[%clk 0:00:04]} 117... Kf4 {[%clk 0:00:18.4]} 118. Rb8
{[%clk 0:00:03.8]} 118... Ra2+ {[%clk 0:00:17.6]} 119. Ke1 {[%clk 0:00:03.4]}
119... Ra3 {[%clk 0:00:15.8]} 120. Rb2 {[%clk 0:00:02.7]} 120... Re3+ {[%clk
0:00:12.5]} 121. Kf2 {[%clk 0:00:02.6]} 121... Rf3+ {[%clk 0:00:12.8]} 122. Ke2
{[%clk 0:00:02.8]} 122... Ra3 {[%clk 0:00:11.7]} 123. Rb4+ {[%clk 0:00:03]}
123... e4 {[%clk 0:00:12.2]} 124. Rb8 {[%clk 0:00:03.8]} 124... Ra2+ {[%clk
0:00:11.7]} 125. Ke1 {[%clk 0:00:04.2]} 125... Kf3 {[%clk 0:00:12.1]} 126. Rf8+
{[%clk 0:00:03.5]} 126... Ke3 {[%clk 0:00:12]} 127. Kf1 {[%clk 0:00:04.2]}
127... Ra1+ {[%clk 0:00:11.9]} 128. Kg2 {[%clk 0:00:04.4]} 128... Ke2 {[%clk
0:00:12.3]} 129. Re8 {[%clk 0:00:03.2]} 129... e3 {[%clk 0:00:12.6]} 130. Re7
{[%clk 0:00:03.1]} 130... Ra2 {[%clk 0:00:11.8]} 131. Kg3 {[%clk 0:00:02.7]}
131... Ra8 {[%clk 0:00:09.8]} 132. Kf4 {[%clk 0:00:02.1]} 132... Ra4+ {[%clk
0:00:09.2]} 133. Kg3 {[%clk 0:00:02.3]} 133... Ra6 {[%clk 0:00:06.7]} 134. Kf4
{[%clk 0:00:01.7]} 134... Rf6+ {[%clk 0:00:07.3]} 135. Kg3 {[%clk 0:00:01.7]}
135... Rf3+ {[%clk 0:00:07.5]} 136. Kg2 {[%clk 0:00:02.2]} 136... Rf5 {[%clk
0:00:06.4]} 137. Kg3 {[%clk 0:00:02.6]} 137... Rf1 {[%clk 0:00:06.4]} 138. Kg2
{[%clk 0:00:02.9]} 138... Rf8 {[%clk 0:00:06]} 139. Ra7 {[%clk 0:00:02.5]}
139... Rd8 {[%clk 0:00:05.3]} 140. Ra2+ {[%clk 0:00:01.9]} 140... Rd2 {[%clk
0:00:05.8]} 141. Ra3 {[%clk 0:00:02.4]} 141... Ke1+ {[%clk 0:00:03.8]} 142. Kf3
{[%clk 0:00:02.7]} 142... e2 {[%clk 0:00:04.4]} 143. Ra1+ {[%clk 0:00:02.4]}
143... Rd1 {[%clk 0:00:04.8]} 144. Ra3 {[%clk 0:00:02.7]} 144... Kf1 {[%clk
0:00:05.2]} 145. Ra2 {[%clk 0:00:02]} 145... e1=Q {[%clk 0:00:05.3]} 146. Rh2
{[%clk 0:00:01.9]} 146... Qc3+ {[%clk 0:00:05.3]} 147. Kg4 {[%clk 0:00:01.4]}
147... Rd4+ {[%clk 0:00:05.7]} 148. Kf5 {[%clk 0:00:01.6]} 148... Qc5+ {[%clk
0:00:06.6]} 0-1

[Event "Early-Titled-Tuesday-Blitz-February-13-2024"]
[Site "Chess.com"]
[Date "2024.02.13"]
[Round "2"]
[White "santosalberto1987"]
[Black "eagleclaw07"]
[Result "0-1"]
[WhiteElo "2570"]
[BlackElo "2809"]
[TimeControl "180+1"]
[EndTime "8:14:53 PST"]
[Termination "eagleclaw07 won by resignation"]

1. e4 {[%clk 0:03:00.9]} 1... Nf6 {[%clk 0:02:59.1]} 2. e5 {[%clk 0:03:00.9]}
2... Nd5 {[%clk 0:02:59.8]} 3. d4 {[%clk 0:03:01.4]} 3... d6 {[%clk 0:03:00.5]}
4. Bc4 {[%clk 0:03:01.7]} 4... Nb6 {[%clk 0:03:00.4]} 5. Bb3 {[%clk 0:03:01.9]}
5... dxe5 {[%clk 0:03:00]} 6. Qf3 {[%clk 0:03:02]} 6... e6 {[%clk 0:02:59.8]} 7.
dxe5 {[%clk 0:03:01.9]} 7... Nc6 {[%clk 0:02:59.1]} 8. Qg3 {[%clk 0:03:02.3]}
8... Na5 {[%clk 0:02:53.2]} 9. Nf3 {[%clk 0:03:01.3]} 9... Bd7 {[%clk
0:02:44.6]} 10. O-O {[%clk 0:02:58.9]} 10... Bc6 {[%clk 0:02:42.9]} 11. Nc3
{[%clk 0:02:55.4]} 11... Nxb3 {[%clk 0:02:25.5]} 12. axb3 {[%clk 0:02:54.9]}
12... Nd5 {[%clk 0:02:08.4]} 13. Rd1 {[%clk 0:02:45.8]} 13... Nxc3 {[%clk
0:01:56.7]} 14. Rxd8+ {[%clk 0:02:39.9]} 14... Rxd8 {[%clk 0:01:57.6]} 15. Bg5
{[%clk 0:02:36.4]} 15... Ne2+ {[%clk 0:01:56.4]} 16. Kf1 {[%clk 0:02:36]} 16...
Nxg3+ {[%clk 0:01:57]} 17. hxg3 {[%clk 0:02:36.9]} 17... Be7 {[%clk 0:01:55.2]}
0-1

[Event "Early-Titled-Tuesday-Blitz-February-13-2024"]
[Site "Chess.com"]
[Date "2024.02.13"]
[Round "2"]
[White "Rozhkov_V"]
[Black "Vaibhavraut99"]
[Result "1/2-1/2"]
[WhiteElo "2389"]
[BlackElo "2668"]
[TimeControl "180+1"]
[EndTime "8:14:59 PST"]
[Termination "Game drawn by repetition"]

1. e4 {[%clk 0:02:59.2]} 1... c5 {[%clk 0:02:44.4]} 2. Nf3 {[%clk 0:02:58.9]}
2... Nc6 {[%clk 0:02:43.4]} 3. d4 {[%clk 0:02:58.7]} 3... cxd4 {[%clk
0:02:43.6]} 4. Nxd4 {[%clk 0:02:59.6]} 4... Nf6 {[%clk 0:02:43.9]} 5. Nc3 {[%clk
0:02:59.8]} 5... e5 {[%clk 0:02:42]} 6. Ndb5 {[%clk 0:02:59.8]} 6... d6 {[%clk
0:02:42.2]} 7. Bg5 {[%clk 0:02:59.2]} 7... a6 {[%clk 0:02:39.9]} 8. Na3 {[%clk
0:02:59.1]} 8... b5 {[%clk 0:02:40]} 9. Bxf6 {[%clk 0:02:59.1]} 9... gxf6 {[%clk
0:02:39.3]} 10. Nd5 {[%clk 0:02:59.5]} 10... Bg7 {[%clk 0:02:39.5]} 11. g3
{[%clk 0:02:59.8]} 11... O-O {[%clk 0:02:39.2]} 12. Bg2 {[%clk 0:02:59.1]} 12...
f5 {[%clk 0:02:29.4]} 13. exf5 {[%clk 0:02:55.8]} 13... Bxf5 {[%clk 0:02:29.4]}
14. Ne3 {[%clk 0:02:56]} 14... Bd7 {[%clk 0:02:29.2]} 15. O-O {[%clk 0:02:51.9]}
15... Qc7 {[%clk 0:02:11]} 16. Nd5 {[%clk 0:02:51.5]} 16... Qd8 {[%clk
0:02:11.4]} 17. Ne3 {[%clk 0:02:51.5]} 17... Qc7 {[%clk 0:01:36.4]} 18. Nd5
{[%clk 0:02:51.5]} 18... Qd8 {[%clk 0:01:36.6]} 19. Ne3 {[%clk 0:02:51.8]}
1/2-1/2

[Event "Early-Titled-Tuesday-Blitz-February-13-2024"]
[Site "Chess.com"]
[Date "2024.02.13"]
[Round "2"]
[White "xberli"]
[Black "ChessBliss09"]
[Result "0-1"]
[WhiteElo "2547"]
[BlackElo "2135"]
[TimeControl "180+1"]
[EndTime "8:15:07 PST"]
[Termination "ChessBliss09 won by resignation"]

1. d4 {[%clk 0:03:00.9]} 1... Nf6 {[%clk 0:02:59.6]} 2. c4 {[%clk 0:02:59.3]}
2... e6 {[%clk 0:02:59.3]} 3. Nc3 {[%clk 0:02:59.4]} 3... Bb4 {[%clk 0:02:59.1]}
4. a3 {[%clk 0:02:59]} 4... Bxc3+ {[%clk 0:02:58.8]} 5. bxc3 {[%clk 0:02:59.9]}
5... d5 {[%clk 0:02:58.3]} 6. Bg5 {[%clk 0:02:58.6]} 6... O-O {[%clk 0:02:53.6]}
7. e3 {[%clk 0:02:55.5]} 7... c5 {[%clk 0:02:50.8]} 8. cxd5 {[%clk 0:02:53.4]}
8... Qa5 {[%clk 0:02:44.8]} 9. Bd3 {[%clk 0:02:45.7]} 9... Qxc3+ {[%clk
0:02:41.8]} 10. Kf1 {[%clk 0:02:45.7]} 10... Nxd5 {[%clk 0:02:36.6]} 11. Ne2
{[%clk 0:02:44.4]} 11... Qa5 {[%clk 0:02:30.3]} 12. dxc5 {[%clk 0:02:24.8]}
12... Qxc5 {[%clk 0:02:23.6]} 13. Bh4 {[%clk 0:02:23]} 13... Nc6 {[%clk
0:02:17.9]} 14. Bg3 {[%clk 0:02:09.2]} 14... Bd7 {[%clk 0:02:10]} 15. h4 {[%clk
0:02:08]} 15... Qe7 {[%clk 0:02:08.2]} 16. h5 {[%clk 0:02:07.5]} 16... Qf6
{[%clk 0:02:08.4]} 17. h6 {[%clk 0:02:06.3]} 17... Nxe3+ {[%clk 0:02:07.6]} 0-1

[Event "Early-Titled-Tuesday-Blitz-February-13-2024"]
[Site "Chess.com"]
[Date "2024.02.13"]
[Round "2"]
[White "PolandHussars"]
[Black "Bauman_Guy"]
[Result "0-1"]
[WhiteElo "2602"]
[BlackElo "2881"]
[TimeControl "180+1"]
[EndTime "8:15:12 PST"]
[Termination "Bauman_Guy won by resignation"]

1. e4 {[%clk 0:02:58.8]} 1... c5 {[%clk 0:03:00.1]} 2. Ne2 {[%clk 0:02:58.3]}
2... d6 {[%clk 0:03:00.2]} 3. g3 {[%clk 0:02:58.2]} 3... g6 {[%clk 0:03:00.4]}
4. Bg2 {[%clk 0:02:58.6]} 4... Bg7 {[%clk 0:03:00.8]} 5. c3 {[%clk 0:02:59.3]}
5... Bg4 {[%clk 0:02:57.3]} 6. f3 {[%clk 0:02:56.7]} 6... Bd7 {[%clk 0:02:56.8]}
7. d4 {[%clk 0:02:56.5]} 7... Nf6 {[%clk 0:02:56.9]} 8. Be3 {[%clk 0:02:50.8]}
8... cxd4 {[%clk 0:02:57]} 9. cxd4 {[%clk 0:02:51.7]} 9... Nc6 {[%clk 0:02:55]}
10. Nbc3 {[%clk 0:02:51.3]} 10... O-O {[%clk 0:02:54.9]} 11. O-O {[%clk
0:02:51.3]} 11... Rc8 {[%clk 0:02:55.1]} 12. Qd2 {[%clk 0:02:51.4]} 12... a6
{[%clk 0:02:55]} 13. h3 {[%clk 0:02:51.2]} 13... b5 {[%clk 0:02:53.4]} 14. b3
{[%clk 0:02:48.3]} 14... b4 {[%clk 0:02:51.6]} 15. Na4 {[%clk 0:02:48.2]} 15...
a5 {[%clk 0:02:51.5]} 16. d5 {[%clk 0:02:45.6]} 16... Nb8 {[%clk 0:02:48.6]} 17.
Bb6 {[%clk 0:02:43.4]} 17... Qe8 {[%clk 0:02:46.3]} 18. Bxa5 {[%clk 0:02:43.4]}
18... Bxa4 {[%clk 0:02:45.8]} 19. bxa4 {[%clk 0:02:44.3]} 19... Na6 {[%clk
0:02:46.1]} 20. Qd3 {[%clk 0:02:34.2]} 20... Qxa4 {[%clk 0:02:44.4]} 21. Qxa6
{[%clk 0:02:32.9]} 21... Ra8 {[%clk 0:02:35.1]} 22. Qb7 {[%clk 0:02:30.4]} 22...
Qxa5 {[%clk 0:02:35.3]} 23. Rfb1 {[%clk 0:02:06.6]} 23... Rfb8 {[%clk
0:02:33.7]} 24. Qxe7 {[%clk 0:02:05.8]} 24... Qb6+ {[%clk 0:02:33.8]} 25. Kh2
{[%clk 0:02:05.6]} 25... Ra7 {[%clk 0:02:34.3]} 26. Rxb4 {[%clk 0:02:04.2]}
26... Rxe7 {[%clk 0:02:34.1]} 27. Rxb6 {[%clk 0:02:03.6]} 27... Rxb6 {[%clk
0:02:35]} 28. Rb1 {[%clk 0:02:04.1]} 28... Rxb1 {[%clk 0:02:34.6]} 0-1

[Event "Early-Titled-Tuesday-Blitz-February-13-2024"]
[Site "Chess.com"]
[Date "2024.02.13"]
[Round "2"]
[White "blitzking1729"]
[Black "esrosenberg"]
[Result "1-0"]
[WhiteElo "2710"]
[BlackElo "2410"]
[TimeControl "180+1"]
[EndTime "8:15:14 PST"]
[Termination "blitzking1729 won by resignation"]

1. c4 {[%clk 0:03:00.9]} 1... e6 {[%clk 0:02:52.4]} 2. Nf3 {[%clk 0:02:59.7]}
2... d5 {[%clk 0:02:52.8]} 3. e3 {[%clk 0:03:00]} 3... Nf6 {[%clk 0:02:48.4]} 4.
Nc3 {[%clk 0:03:00.2]} 4... c6 {[%clk 0:02:46.8]} 5. b3 {[%clk 0:02:59.7]} 5...
Nbd7 {[%clk 0:02:47]} 6. Bb2 {[%clk 0:02:59.8]} 6... Bd6 {[%clk 0:02:47.5]} 7.
Be2 {[%clk 0:02:59.5]} 7... O-O {[%clk 0:02:48]} 8. O-O {[%clk 0:03:00.1]} 8...
b6 {[%clk 0:02:48.6]} 9. d4 {[%clk 0:03:00]} 9... Bb7 {[%clk 0:02:49.3]} 10. Qc2
{[%clk 0:03:00.6]} 10... Rc8 {[%clk 0:02:48.9]} 11. Rad1 {[%clk 0:03:00.3]}
11... Qc7 {[%clk 0:02:48.6]} 12. Rfe1 {[%clk 0:02:58.3]} 12... a6 {[%clk
0:02:38.8]} 13. h3 {[%clk 0:02:53.9]} 13... Rfd8 {[%clk 0:02:37.5]} 14. e4
{[%clk 0:02:50.7]} 14... dxe4 {[%clk 0:02:37.5]} 15. Nxe4 {[%clk 0:02:51.4]}
15... Nxe4 {[%clk 0:02:38.4]} 16. Qxe4 {[%clk 0:02:52.3]} 16... Nf6 {[%clk
0:02:39.1]} 17. Qc2 {[%clk 0:02:46]} 17... c5 {[%clk 0:02:28.7]} 18. d5 {[%clk
0:02:46.2]} 18... exd5 {[%clk 0:02:26.1]} 19. Bxf6 {[%clk 0:02:45.9]} 19... gxf6
{[%clk 0:02:27]} 20. cxd5 {[%clk 0:02:45.9]} 20... Be5 {[%clk 0:02:26.2]} 21.
Nxe5 {[%clk 0:02:40]} 21... fxe5 {[%clk 0:02:25.4]} 22. Bg4 {[%clk 0:02:34.5]}
22... Ra8 {[%clk 0:02:19.1]} 23. Qf5 {[%clk 0:02:32.6]} 23... Rxd5 {[%clk
0:02:12.6]} 24. Rxd5 {[%clk 0:02:28.8]} 24... Bxd5 {[%clk 0:02:12.4]} 25. Qg5+
{[%clk 0:02:29.5]} 25... Kh8 {[%clk 0:02:11.2]} 26. Qf6+ {[%clk 0:02:29.6]}
26... Kg8 {[%clk 0:02:10.6]} 27. Rxe5 {[%clk 0:02:30.2]} 1-0

[Event "Early-Titled-Tuesday-Blitz-February-13-2024"]
[Site "Chess.com"]
[Date "2024.02.13"]
[Round "2"]
[White "AlexPapasimakopoulos"]
[Black "CFalcons8"]
[Result "1-0"]
[WhiteElo "2735"]
[BlackElo "2365"]
[TimeControl "180+1"]
[EndTime "8:15:36 PST"]
[Termination "AlexPapasimakopoulos won by resignation"]

1. d4 {[%clk 0:03:00.9]} 1... Nf6 {[%clk 0:02:59.9]} 2. c4 {[%clk 0:02:56.3]}
2... e6 {[%clk 0:03:00.7]} 3. Nc3 {[%clk 0:02:55.7]} 3... Bb4 {[%clk 0:03:00.9]}
4. Qc2 {[%clk 0:02:55.5]} 4... c5 {[%clk 0:02:59.6]} 5. dxc5 {[%clk 0:02:55.4]}
5... O-O {[%clk 0:02:58.9]} 6. a3 {[%clk 0:02:55.6]} 6... Bxc5 {[%clk
0:02:58.9]} 7. Nf3 {[%clk 0:02:55.4]} 7... d6 {[%clk 0:02:58.8]} 8. Bg5 {[%clk
0:02:55.9]} 8... Nbd7 {[%clk 0:02:56.9]} 9. e3 {[%clk 0:02:55.6]} 9... h6 {[%clk
0:02:56.5]} 10. Bh4 {[%clk 0:02:55.5]} 10... a6 {[%clk 0:02:33.9]} 11. Be2
{[%clk 0:02:54.4]} 11... Qc7 {[%clk 0:02:33.4]} 12. O-O {[%clk 0:02:53.8]} 12...
Re8 {[%clk 0:02:21]} 13. Rfd1 {[%clk 0:02:52.8]} 13... Ng4 {[%clk 0:02:14.1]}
14. Ne4 {[%clk 0:02:44]} 14... Nge5 {[%clk 0:02:14.3]} 15. Nxe5 {[%clk
0:02:40.4]} 15... Nxe5 {[%clk 0:02:13.7]} 16. b4 {[%clk 0:02:37.9]} 16... Ba7
{[%clk 0:02:09.3]} 17. Nxd6 {[%clk 0:02:37.3]} 17... Rf8 {[%clk 0:02:09]} 18.
Qe4 {[%clk 0:02:19.9]} 18... Ng6 {[%clk 0:02:05.6]} 19. Bg3 {[%clk 0:02:19.8]}
19... Qc6 {[%clk 0:02:06.3]} 20. Qxc6 {[%clk 0:02:15.1]} 20... bxc6 {[%clk
0:02:07.2]} 21. Bf3 {[%clk 0:02:15.6]} 21... Bd7 {[%clk 0:02:04]} 22. Nb7 {[%clk
0:02:12.1]} 1-0

[Event "Early-Titled-Tuesday-Blitz-February-13-2024"]
[Site "Chess.com"]
[Date "2024.02.13"]
[Round "2"]
[White "rachidhuilda"]
[Black "wqws"]
[Result "0-1"]
[WhiteElo "2320"]
[BlackElo "2637"]
[TimeControl "180+1"]
[EndTime "8:15:36 PST"]
[Termination "wqws won by resignation"]

1. d4 {[%clk 0:03:00.9]} 1... Nf6 {[%clk 0:02:58.9]} 2. Nf3 {[%clk 0:02:57.6]}
2... g6 {[%clk 0:02:58.2]} 3. e3 {[%clk 0:02:56.2]} 3... Bg7 {[%clk 0:02:58.5]}
4. Be2 {[%clk 0:02:56.2]} 4... O-O {[%clk 0:02:59.2]} 5. O-O {[%clk 0:02:56.9]}
5... b6 {[%clk 0:02:59.3]} 6. c4 {[%clk 0:02:55.8]} 6... Bb7 {[%clk 0:02:59.7]}
7. Nc3 {[%clk 0:02:56.2]} 7... Ne4 {[%clk 0:02:59.6]} 8. Qc2 {[%clk 0:02:54.3]}
8... Nxc3 {[%clk 0:02:59.3]} 9. Qxc3 {[%clk 0:02:53.9]} 9... c5 {[%clk
0:02:59.7]} 10. Rd1 {[%clk 0:02:48.9]} 10... d6 {[%clk 0:02:59.1]} 11. Qc2
{[%clk 0:02:47.8]} 11... Nd7 {[%clk 0:02:56.7]} 12. b3 {[%clk 0:02:45.9]} 12...
a5 {[%clk 0:02:55.6]} 13. a4 {[%clk 0:02:44]} 13... Qc7 {[%clk 0:02:54.4]} 14.
Bb2 {[%clk 0:02:43.6]} 14... e5 {[%clk 0:02:52.7]} 15. dxe5 {[%clk 0:02:40.6]}
15... Nxe5 {[%clk 0:02:50]} 16. Rd2 {[%clk 0:02:33.4]} 16... Nxf3+ {[%clk
0:02:08.1]} 17. Bxf3 {[%clk 0:02:33]} 17... Bxb2 {[%clk 0:02:07.4]} 18. Bxb7
{[%clk 0:02:21.6]} 18... Bxa1 {[%clk 0:02:07]} 19. Bxa8 {[%clk 0:02:19.3]} 19...
Rxa8 {[%clk 0:02:07.9]} 20. Qd1 {[%clk 0:02:15.7]} 20... Be5 {[%clk 0:02:03.9]}
21. f4 {[%clk 0:02:15.2]} 21... Bc3 {[%clk 0:02:01.3]} 22. Rxd6 {[%clk
0:02:14.9]} 22... Bd4 {[%clk 0:02:01.2]} 23. Rd5 {[%clk 0:02:05.7]} 23... Bxe3+
{[%clk 0:02:01.3]} 24. Kh1 {[%clk 0:02:04.8]} 24... Qxf4 {[%clk 0:02:01.3]} 0-1